fUSD/lending_fUSD_20240508
["ID","MTS","AMOUNT","RATE_DAILY","PERIOD"]
[326632089,1715169047737,-500.0,0.00027397,2]
[326632090,1715169047746,-532.14912258,0.00027397,2]
[326632091,1715169047756,-500.0,0.00027397,2]
[326632092,1715169047765,-510.41760712,0.00027397,2]
[326632093,1715169047774,-503.53498493,0.00027397,2]
[326632094,1715169047784,-500.0,0.00027397,2]
[326632095,1715169047794,-500.0,0.00027397,2]
[326632096,1715169047803,-504.57224376,0.00027397,2]
[326632097,1715169047812,-500.0,0.00027397,2]
[326632098,1715169047821,-500.0,0.00027397,2]
[326632099,1715169047831,-500.0,0.00027397,2]
[326632100,1715169047840,-507.0350109,0.00027397,2]
[326632101,1715169047849,-500.0,0.00027397,2]
[326632102,1715169047858,-500.0,0.00027397,2]
[326632103,1715169047869,-500.0,0.00027397,2]
[326632104,1715169047878,-500.0,0.00027397,2]
[326632105,1715169047887,-512.18340353,0.00027397,2]
[326632106,1715169047897,-500.0,0.00027397,2]
[326632107,1715169047908,-500.0,0.00027397,2]
[326632108,1715169047920,-500.0,0.00027397,2]
[326632109,1715169047930,-500.0,0.00027397,2]
[326632110,1715169047939,-500.0,0.00027397,2]
[326632111,1715169047951,-500.0,0.00027397,2]
[326632112,1715169047960,-500.0,0.00027397,2]
[326632113,1715169047970,-583.81252795,0.00027397,2]
[326632114,1715169047979,-500.0,0.00027397,2]
[326632115,1715169047988,-500.0,0.00027397,2]
[326632116,1715169047998,-500.0,0.00027397,2]
[326632117,1715169048008,-500.0,0.00027397,2]
[326632118,1715169048018,-500.0,0.00027397,2]
[326632119,1715169048027,-565.6172296,0.00027397,2]
[326632120,1715169048036,-500.0,0.00027397,2]
[326632121,1715169048046,-500.0,0.00027397,2]
[326632122,1715169048055,-500.0,0.00027397,2]
[326632123,1715169048064,-500.0,0.00027397,2]
[326632124,1715169048075,-613.42243156,0.00027397,2]
[326632125,1715169048084,-500.0,0.00027397,2]
[326632126,1715169048101,-500.0,0.00027397,2]
[326632127,1715169048129,-500.0,0.00027397,2]
[326632128,1715169048141,-505.3690569,0.00027397,2]
[326632129,1715169048151,-500.0,0.00027397,2]
[326632130,1715169048161,-502.96255435,0.00027397,2]
[326632131,1715169048171,-500.0,0.00027397,2]
[326632132,1715169048180,-500.0,0.00027397,2]
[326632133,1715169048190,-504.69140151,0.00027397,2]
[326632134,1715169048199,-500.0,0.00027397,2]
[326632135,1715169048208,-500.0,0.00027397,2]
[326632136,1715169048218,-500.0,0.00027397,2]
[326632137,1715169048227,-500.0,0.00027397,2]
[326632138,1715169048237,-500.0,0.00027397,2]
[326632139,1715169048246,-500.0,0.00027397,2]
[326632140,1715169048257,-500.0,0.00027397,2]
[326632141,1715169048266,-500.0,0.00027397,2]
[326632142,1715169048275,-500.0,0.00027397,2]
[326632143,1715169048285,-500.0,0.00027397,2]
[326632144,1715169048294,-500.0,0.00027397,2]
[326632145,1715169048304,-500.0,0.00027397,2]
[326632146,1715169048313,-500.0,0.00027397,2]
[326632147,1715169048322,-507.71268301,0.00027397,2]
[326632148,1715169048331,-1421.74,0.00027397,2]
[326632149,1715169048343,-500.0,0.00027397,2]
[326632150,1715169048353,-500.0,0.00027397,2]
[326632151,1715169048362,-500.0,0.00027397,2]
[326632152,1715169048373,-500.0,0.00027397,2]
[326632153,1715169048382,-500.0,0.00027397,2]
[326632154,1715169048392,-223.82405893,0.00027397,2]
[326632155,1715169048401,-500.0,0.00027397,2]
[326632156,1715169048411,-580.84889771,0.00027397,2]
[326632157,1715169048420,-500.0,0.00027397,2]
[326632158,1715169048430,-512.1809532,0.00027397,2]
[326632159,1715169048439,-500.0,0.00027397,2]
[326632160,1715169048448,-500.0,0.00027397,2]
[326632161,1715169048457,-544.90550395,0.00027397,2]
[326632162,1715169048466,-500.0,0.00027397,2]
[326632163,1715169048476,-505.46,0.00027397,2]
[326632164,1715169048485,-500.0,0.00027397,2]
[326632165,1715169048495,-500.0,0.00027397,2]
[326632166,1715169048504,-500.0,0.00027397,2]
[326632167,1715169048515,-197.41748132,0.00027397,2]
[326632168,1715169048525,-500.0,0.00027397,2]
[326632169,1715169048534,-500.0,0.00027397,2]
[326632170,1715169048544,-500.0,0.00027397,2]
[326632171,1715169048553,-501.23408554,0.00027397,2]
[326632172,1715169048562,-500.0,0.00027397,2]
[326632173,1715169048571,-500.0,0.00027397,2]
[326632174,1715169048581,-8302.06936655,0.00027397,2]
[326632175,1715169048765,-1488.86329916,0.00027397,2]
[326632176,1715169048777,-1369.29431586,0.00027397,2]
[326632177,1715169048799,-950.35031323,0.00027397,2]
[326632178,1715169048813,-6741.1457711,0.00027397,2]
[326632179,1715169048822,-500.0,0.00027397,2]
[326632180,1715169048832,-500.0,0.00027397,2]
[326632181,1715169048842,-500.0,0.00027397,2]
[326632182,1715169048851,-500.0,0.00027397,2]
[326632183,1715169048860,-500.0,0.00027397,2]
[326632184,1715169048871,-500.0,0.00027397,2]
[326632185,1715169048880,-500.0,0.00027397,2]
[326632186,1715169048889,-500.0,0.00027397,2]
[326632187,1715169048899,-226.59420057,0.00027397,2]
[326632188,1715169048910,-500.0,0.00027397,2]
[326632189,1715169048921,-500.0,0.00027397,2]
[326632190,1715169048930,-565.16,0.00027397,2]
[326632191,1715169048939,-500.0,0.00027397,2]
[326632192,1715169048951,-500.0,0.00027397,2]
[326632193,1715169048960,-500.0,0.00027397,2]
[326632194,1715169048970,-507.88811371,0.00027397,2]
[326632195,1715169048979,-500.0,0.00027397,2]
[326632196,1715169048989,-500.0,0.00027397,2]
[326632197,1715169049001,-500.0,0.00027397,2]
[326632198,1715169049012,-510.5425876,0.00027397,2]
[326632199,1715169049021,-500.0,0.00027397,2]
[326632200,1715169049031,-191.00482069,0.00027397,2]
[326632201,1715169049041,-507.36058911,0.00027397,2]
[326632202,1715169049051,-500.0,0.00027397,2]
[326632203,1715169049060,-500.0,0.00027397,2]
[326632204,1715169049070,-500.0,0.00027397,2]
[326632205,1715169049079,-500.0,0.00027397,2]
[326632206,1715169049088,-508.6176297,0.00027397,2]
[326632207,1715169049099,-114.252051,0.00027397,2]
[326632208,1715169051534,-217.09655827,9.976e-05,2]
[326632211,1715169056662,-155.19495599,0.00017259,2]
[326632215,1715169056672,-535.02614423,0.00017259,2]
[326632216,1715169056682,-343.82813295,0.00027397,2]
[326632218,1715169056691,-500.0,0.00027397,2]
[326632221,1715169056705,-566.03,0.00027397,2]
[326632223,1715169056715,-646.27,0.00027397,2]
[326632225,1715169056724,-548.05353743,0.00027397,2]
[326632226,1715169056735,-500.0,0.00027397,2]
[326632229,1715169056745,-470.77177991,0.00027397,2]
[326632231,1715169056756,-39.37340203,0.00027397,2]
[326632233,1715169056766,-500.0,0.00027397,2]
[326632235,1715169056775,-500.0,0.00027397,2]
[326632237,1715169056785,-428.62659797,0.00027397,2]
[326632239,1715169056797,-76.99108946,0.00027397,2]
[326632241,1715169056806,-500.0,0.00027397,2]
[326632243,1715169056816,-160.52824159,0.00027397,2]
[326632245,1715169056827,-339.47175841,0.00027397,2]
[326632247,1715169056836,-486.02332806,0.00027397,2]
[326632250,1715169056847,-13.97667194,0.00027397,2]
[326632252,1715169056856,-507.26776988,0.00027397,2]
[326632254,1715169056865,-352.6411531,0.00027397,2]
[326632255,1715169056878,-147.3588469,0.00027397,2]
[326632256,1715169056887,-164.78200712,0.00027397,2]
[326632257,1715169056898,-323.87884224,0.00027397,2]
[326632258,1715169056908,-500.0,0.00027397,2]
[326632259,1715169056920,-505.85720766,0.00027397,2]
[326632260,1715169056929,-500.0,0.00027397,2]
[326632261,1715169056938,-500.0,0.00027397,2]
[326632262,1715169056947,-330.83045259,0.00027397,2]
[326632263,1715169066501,-3501.84131003,0.0001,2]
[326632309,1715170234795,-1098.17284557,9.998e-05,2]
[326632311,1715170234806,-5212.63166477,9.998e-05,2]
[326632313,1715170234816,-300.0,9.999e-05,2]
[326632315,1715170234826,-35269.3826974,0.0001,2]
[326632317,1715170234835,-298.56741175,0.0001,2]
[326632321,1715170234846,-366.57771071,0.0001,2]
[326632324,1715170234856,-1037.51160232,0.00014,2]
[326632326,1715170234866,-31276.40057526,0.00015,2]
[326632328,1715170234875,-704.0,0.000156,2]
[326632331,1715170235025,-241.23184144,0.00017258,2]
[326632332,1715170235035,-162.33624295,0.00017258,2]
[326632333,1715170235045,-225.0,0.00019,2]
[326632334,1715170235056,-155.12,0.00019178,2]
[326632335,1715170235067,-5000.0,0.00019451,2]
[326632336,1715170235078,-155.81615552,0.0002,2]
[326632337,1715170235088,-155.0,0.0002,2]
[326632338,1715170235097,-861.15298336,0.00020997,2]
[326632339,1715170235107,-155.0,0.00020998,2]
[326632340,1715170235117,-2215.11343661,0.00021,2]
[326632341,1715170235128,-492.26920761,0.00021,2]
[326632342,1715170235137,-546.4241888,0.00022,2]
[326632343,1715170235148,-164.28504997,0.00022298,2]
[326632344,1715170235158,-257.31,0.00023243,15]
[326632345,1715170235167,-179.0,0.00023299,2]
[326632346,1715170235177,-175.16,0.00023347,2]
[326632347,1715170235187,-2001.32534763,0.000234,2]
[326632348,1715170235196,-250.0,0.00023403,2]
[326632349,1715170235206,-250.0,0.00023425,2]
[326632350,1715170235216,-2000.0,0.00023427,2]
[326632351,1715170235225,-216.25,0.0002347,2]
[326632352,1715170235235,-250.7,0.00023487,2]
[326632353,1715170235245,-432.43230672,0.00024,2]
[326632354,1715170235256,-1072.44064238,0.00024497,2]
[326632355,1715170235266,-167.57033928,0.00024499,2]
[326632356,1715170235276,-1058.0,0.00024782,2]
[326632357,1715170235287,-9141.6134401,0.00024999,2]
[326632358,1715170235296,-335.67037145,0.00025,7]
[326632359,1715170235309,-155.0,0.00025,2]
[326632360,1715170235319,-214.97619056,0.00025,2]
[326632361,1715170235329,-2219.11364841,0.00025,2]
[326632362,1715170235339,-471.76227117,0.00025378,2]
[326632363,1715170235350,-155.12,0.00025379,2]
[326632364,1715170235360,-876.209627,0.00025397,2]
[326632365,1715170235370,-180.0,0.00025578,2]
[326632366,1715170235380,-876.209627,0.00025715,2]
[326632367,1715170235390,-876.209627,0.00026032,2]
[326632368,1715170235400,-310.43,0.000261,2]
[326632369,1715170235410,-876.209627,0.0002635,2]
[326632370,1715170235422,-250.7,0.00026423,2]
[326632371,1715170235433,-876.209627,0.00026667,2]
[326632372,1715170235442,-419.24,0.00026964,2]
[326632373,1715170235452,-257.31,0.00026979,15]
[326632374,1715170235463,-1741.42627628,0.00027,2]
[326632375,1715170235472,-15886.17070108,0.00027,3]
[326632376,1715170235485,-313.94261921,0.00027,3]
[326632377,1715170235496,-873.58,0.00027,3]
[326632378,1715170235510,-13439.55968334,0.00027,3]
[326632379,1715170235520,-165.21605468,0.00027123,3]
[326632380,1715170235530,-965.88462889,0.0002713,2]
[326632381,1715170235551,-3500.94133622,0.00027176,2]
[326632382,1715170235560,-200.0,0.00027178,2]
[326632383,1715170235575,-179.62846155,0.00027197,2]
[326632384,1715170235584,-1283.17473151,0.00027197,2]
[326632385,1715170235594,-1561.86172371,0.00027281,2]
[326632386,1715170235604,-174.62,0.00027287,2]
[326632387,1715170235614,-4719.6195,0.00027297,2]
[326632388,1715170235624,-500.0,0.00027297,2]
[326632389,1715170235634,-43034.20174345,0.00027297,2]
[326632390,1715170235646,-1075.9549519,0.00027297,2]
[326632391,1715170235658,-6329.55979309,0.00027297,2]
[326632392,1715170235671,-562.34159793,0.00027297,2]
[326632393,1715170235683,-8372.80293214,0.00027297,2]
[326632394,1715170235694,-373.00390906,0.00027297,2]
[326632395,1715170235706,-1870.000025,0.00027297,2]
[326632396,1715170236695,-1081.99488194,0.00027297,2]
[326632399,1715170236708,-1149.38698039,0.00027297,2]
[326632401,1715170236720,-5800.0,0.00027297,2]
[326632404,1715170236732,-2657.2665935,0.00027297,2]
[326632407,1715170236745,-4903.46776207,0.00027297,2]
[326632411,1715170236756,-7876.43527198,0.00027297,2]
[326632414,1715170236771,-259.94301548,0.00027297,2]
[326632466,1715170238386,-3690.942091,0.00027297,2]
[326632470,1715170238398,-5604.50535107,0.00027297,2]
[326632472,1715170238408,-7468.90375274,0.00027297,2]
[326632473,1715170238420,-207872.48814726,0.00027297,2]
[326632474,1715170238432,-214.0,0.00027297,2]
[326632475,1715170238441,-5886.43759506,0.00027297,2]
[326632476,1715170238451,-189.70445863,0.00027297,2]
[326632477,1715170238460,-600.74138409,0.00027319,2]
[326632478,1715170238474,-647.0,0.00027344,2]
[326632479,1715170238485,-507.0,0.00027344,2]
[326632480,1715170238494,-500.0,0.00027359,2]
[326632481,1715170238505,-800.0,0.0002737,2]
[326632482,1715170238515,-324.27594836,0.00027393,2]
[326632483,1715170238526,-3718.9378683,0.00027393,2]
[326632484,1715170238536,-1585.70936532,0.00027393,2]
[326632485,1715170238546,-5170.03770924,0.00027393,2]
[326632486,1715170238555,-5477.74075265,0.00027394,2]
[326632487,1715170238565,-578.74943415,0.00027395,2]
[326632488,1715170238575,-15123.99605095,0.00027395,2]
[326632489,1715170238587,-2143.77423767,0.00027395,2]
[326632490,1715170239887,-1998.48027723,0.00027395,2]
[326632492,1715170239897,-1029.41580277,0.00027395,2]
[326632500,1715170240648,-2250.05514381,0.00027395,2]
[326632502,1715170240658,-155.0,0.00027395,2]
[326632504,1715170240668,-1318.15024007,0.00027396,2]
[326632506,1715170240678,-1474.54417616,0.00027396,2]
[326632508,1715170240687,-150.01,0.00027396,2]
[326632510,1715170240697,-500.0,0.00027397,2]
[326632512,1715170240707,-443.78973703,0.00027397,2]
[326632514,1715170240716,-505.25781622,0.00027397,2]
[326632516,1715170240726,-200.0,0.00027397,2]
[326632518,1715170240735,-510.41760712,0.00027397,2]
[326632520,1715170240744,-500.0,0.00027397,2]
[326632522,1715170240754,-500.0,0.00027397,2]
[326632524,1715170240763,-500.0,0.00027397,2]
[326632526,1715170240774,-582.62349635,0.00027397,2]
[326632528,1715170240784,-573.75,0.00027397,2]
[326632530,1715170240793,-500.0,0.00027397,2]
[326632533,1715170240806,-637.05,0.00027397,2]
[326632535,1715170240815,-500.0,0.00027397,2]
[326632537,1715170240824,-500.0,0.00027397,2]
[326632539,1715170240834,-500.0,0.00027397,2]
[326632541,1715170240843,-500.0,0.00027397,2]
[326632543,1715170240853,-500.0,0.00027397,2]
[326632545,1715170240863,-500.0,0.00027397,2]
[326632547,1715170240872,-507.71268301,0.00027397,2]
[326632549,1715170240881,-565.6172296,0.00027397,2]
[326632551,1715170240891,-500.0,0.00027397,2]
[326632553,1715170240900,-613.42243156,0.00027397,2]
[326632555,1715170240909,-500.0,0.00027397,2]
[326632557,1715170240918,-502.96255435,0.00027397,2]
[326632559,1715170240928,-580.84889771,0.00027397,2]
[326632561,1715170240937,-504.69140151,0.00027397,2]
[326632563,1715170240946,-500.0,0.00027397,2]
[326632565,1715170240955,-500.0,0.00027397,2]
[326632567,1715170240965,-500.0,0.00027397,2]
[326632568,1715170240974,-500.0,0.00027397,2]
[326632569,1715170240983,-500.0,0.00027397,2]
[326632570,1715170240993,-500.0,0.00027397,2]
[326632571,1715170241002,-563.07,0.00027397,2]
[326632572,1715170241011,-505.3690569,0.00027397,2]
[326632573,1715170241020,-223.82405893,0.00027397,2]
[326632574,1715170241029,-500.0,0.00027397,2]
[326632575,1715170241038,-500.0,0.00027397,2]
[326632576,1715170241047,-512.1809532,0.00027397,2]
[326632577,1715170241056,-511.63032717,0.00027397,2]
[326632578,1715170241065,-152.33,0.00027397,2]
[326632579,1715170241074,-500.0,0.00027397,2]
[326632580,1715170241084,-500.74776938,0.00027397,2]
[326632581,1715170241093,-197.41748132,0.00027397,2]
[326632582,1715170241102,-500.0,0.00027397,2]
[326632583,1715170241226,-500.0,0.00027397,2]
[326632584,1715170241236,-500.0,0.00027397,2]
[326632586,1715170241272,-501.23408554,0.00027397,2]
[326632587,1715170241282,-500.0,0.00027397,2]
[326632589,1715170241292,-500.0,0.00027397,2]
[326632591,1715170241302,-500.0,0.00027397,2]
[326632593,1715170241312,-500.0,0.00027397,2]
[326632595,1715170241321,-500.0,0.00027397,2]
[326632597,1715170241331,-500.0,0.00027397,2]
[326632599,1715170241340,-188.05150651,0.00027397,2]
[326632601,1715170241349,-500.0,0.00027397,2]
[326632603,1715170241359,-170.75432476,0.00027397,2]
[326632605,1715170241369,-510.0,0.00027397,2]
[326632607,1715170241379,-500.0,0.00027397,2]
[326632609,1715170241389,-507.06558579,0.00027397,2]
[326632611,1715170241398,-504.01319925,0.00027397,2]
[326632613,1715170241408,-506.05525055,0.00027397,2]
[326632615,1715170241418,-510.48712914,0.00027397,2]
[326632617,1715170241433,-500.0,0.00027397,2]
[326632619,1715170241443,-515.62095025,0.00027397,2]
[326632621,1715170241452,-505.41935933,0.00027397,2]
[326632622,1715170241462,-500.0,0.00027397,2]
[326632623,1715170241474,-504.38070999,0.00027397,2]
[326632625,1715170241483,-500.0,0.00027397,2]
[326632627,1715170241493,-506.68155392,0.00027397,2]
[326632629,1715170241502,-511.1034707,0.00027397,2]
[326632631,1715170241514,-500.0,0.00027397,2]
[326632633,1715170241523,-500.0,0.00027397,2]
[326632635,1715170241533,-508.5797683,0.00027397,2]
[326632637,1715170241542,-255.79625018,0.00027397,2]
[326632639,1715170241551,-500.0,0.00027397,2]
[326632641,1715170241560,-500.0,0.00027397,2]
[326632643,1715170241570,-645.37223938,0.00027397,2]
[326632645,1715170241579,-500.0,0.00027397,2]
[326632647,1715170241590,-548.4,0.00027397,2]
[326632649,1715170241599,-500.0,0.00027397,2]
[326632651,1715170241610,-344.28647488,0.00027397,2]
[326632653,1715170241620,-500.0,0.00027397,2]
[326632655,1715170241629,-500.0,0.00027397,2]
[326632657,1715170241639,-573.65,0.00027397,2]
[326632659,1715170241648,-540.95,0.00027397,2]
[326632661,1715170241658,-508.79,0.00027397,2]
[326632663,1715170241667,-504.56455323,0.00027397,2]
[326632665,1715170241676,-500.0,0.00027397,2]
[326632667,1715170241686,-508.75796615,0.00027397,2]
[326632668,1715170241700,-500.0,0.00027397,2]
[326632670,1715170241718,-500.0,0.00027397,2]
[326632672,1715170241727,-507.79497124,0.00027397,2]
[326632674,1715170241736,-517.00737211,0.00027397,2]
[326632676,1715170241746,-500.0,0.00027397,2]
[326632678,1715170241755,-509.16814644,0.00027397,2]
[326632680,1715170241765,-508.22846649,0.00027397,2]
[326632682,1715170241778,-500.0,0.00027397,2]
[326632684,1715170241787,-500.0,0.00027397,2]
[326632686,1715170241797,-500.0,0.00027397,2]
[326632688,1715170241806,-505.06226639,0.00027397,2]
[326632690,1715170241816,-516.28,0.00027397,2]
[326632692,1715170241825,-500.0,0.00027397,2]
[326632694,1715170241835,-500.0,0.00027397,2]
[326632696,1715170241844,-505.12370716,0.00027397,2]
[326632698,1715170241854,-500.0,0.00027397,2]
[326632700,1715170241864,-500.0,0.00027397,2]
[326632702,1715170241874,-500.0,0.00027397,2]
[326632704,1715170241883,-300.29530908,0.00027397,2]
[326632706,1715170241894,-509.29277512,0.00027397,2]
[326632708,1715170241903,-500.0,0.00027397,2]
[326632710,1715170241912,-550.55,0.00027397,2]
[326632712,1715170241921,-509.90827849,0.00027397,2]
[326632714,1715170241930,-506.67620801,0.00027397,2]
[326632716,1715170241940,-500.0,0.00027397,2]
[326632718,1715170241950,-500.0,0.00027397,2]
[326632719,1715170241958,-500.0,0.00027397,2]
[326632720,1715170241967,-500.0,0.00027397,2]
[326632722,1715170241977,-509.1373859,0.00027397,2]
[326632723,1715170241986,-500.0,0.00027397,2]
[326632725,1715170241995,-629.19,0.00027397,2]
[326632727,1715170242004,-500.0,0.00027397,2]
[326632729,1715170242013,-500.0,0.00027397,2]
[326632731,1715170242023,-500.0,0.00027397,2]
[326632733,1715170242032,-500.0,0.00027397,2]
[326632734,1715170242041,-560.81,0.00027397,2]
[326632736,1715170242051,-500.0,0.00027397,2]
[326632738,1715170242060,-500.0,0.00027397,2]
[326632740,1715170242069,-500.0,0.00027397,2]
[326632742,1715170242078,-500.0,0.00027397,2]
[326632744,1715170242087,-578.58,0.00027397,2]
[326632746,1715170242096,-500.0,0.00027397,2]
[326632748,1715170242105,-500.0,0.00027397,2]
[326632749,1715170242115,-508.40764607,0.00027397,2]
[326632751,1715170242125,-506.74147611,0.00027397,2]
[326632753,1715170242134,-506.45010398,0.00027397,2]
[326632755,1715170242143,-500.0,0.00027397,2]
[326632757,1715170242154,-500.0,0.00027397,2]
[326632759,1715170242163,-500.0,0.00027397,2]
[326632760,1715170242172,-508.45266089,0.00027397,2]
[326632762,1715170242181,-500.0,0.00027397,2]
[326632764,1715170242190,-507.68615699,0.00027397,2]
[326632766,1715170242200,-513.19106059,0.00027397,2]
[326632768,1715170242209,-500.0,0.00027397,2]
[326632769,1715170242219,-500.0,0.00027397,2]
[326632771,1715170242229,-500.0,0.00027397,2]
[326632773,1715170242237,-500.0,0.00027397,2]
[326632775,1715170242247,-565.57762453,0.00027397,2]
[326632777,1715170242258,-500.0,0.00027397,2]
[326632779,1715170242268,-500.0,0.00027397,2]
[326632781,1715170242277,-557.85,0.00027397,2]
[326632783,1715170242291,-506.04042533,0.00027397,2]
[326632785,1715170242308,-500.0,0.00027397,2]
[326632788,1715170242323,-508.04670607,0.00027397,2]
[326632790,1715170242335,-500.0,0.00027397,2]
[326632792,1715170242346,-500.0,0.00027397,2]
[326632795,1715170242362,-504.03743384,0.00027397,2]
[326632797,1715170242375,-506.82981256,0.00027397,2]
[326632799,1715170242388,-506.11225324,0.00027397,2]
[326632801,1715170242401,-507.70341534,0.00027397,2]
[326632803,1715170242414,-500.0,0.00027397,2]
[326632806,1715170242432,-411.42662237,0.00027397,2]
[326632808,1715170242445,-513.87192462,0.00027397,2]
[326632810,1715170242459,-576.78760273,0.00027397,2]
[326632811,1715170242472,-500.0,0.00027397,2]
[326632812,1715170242483,-300.0,0.00027397,2]
[326632815,1715170242496,-500.0,0.00027397,2]
[326632817,1715170242512,-633.26,0.00027397,2]
[326632819,1715170242527,-637.06661716,0.00027397,2]
[326632822,1715170242539,-633.1408819,0.00027397,2]
[326632824,1715170242549,-500.0,0.00027397,2]
[326632826,1715170242561,-500.0,0.00027397,2]
[326632828,1715170242572,-500.0,0.00027397,2]
[326632831,1715170242585,-508.69077751,0.00027397,2]
[326632833,1715170242598,-504.45164791,0.00027397,2]
[326632835,1715170242611,-500.0,0.00027397,2]
[326632837,1715170242624,-500.0,0.00027397,2]
[326632840,1715170242637,-505.79847002,0.00027397,2]
[326632842,1715170242650,-4706.42340509,0.00027397,2]
[326632844,1715170242678,-3595.64596146,0.00027397,2]
[326632845,1715170242688,-506.94187454,0.00027397,2]
[326632846,1715170242698,-507.81060468,0.00027397,2]
[326632847,1715170242708,-500.0,0.00027397,2]
[326632848,1715170242721,-576.98,0.00027397,2]
[326632849,1715170242733,-500.0,0.00027397,2]
[326632850,1715170242746,-585.57,0.00027397,2]
[326632851,1715170242756,-500.0,0.00027397,2]
[326632852,1715170242768,-520.55220818,0.00027397,2]
[326632853,1715170242780,-500.0,0.00027397,2]
[326632854,1715170242792,-500.0,0.00027397,2]
[326632857,1715170242803,-510.31,0.00027397,2]
[326632859,1715170242814,-500.0,0.00027397,2]
[326632861,1715170242825,-500.0,0.00027397,2]
[326632863,1715170242837,-500.0,0.00027397,2]
[326632866,1715170242848,-500.0,0.00027397,2]
[326632868,1715170242858,-500.0,0.00027397,2]
[326632870,1715170242869,-136.18935114,0.00027397,2]
[326632873,1715170242913,-363.81064886,0.00027397,2]
[326632874,1715170242924,-406.15378267,0.00027397,2]
[326632875,1715170242938,-194.61596426,0.00027397,2]
[326632876,1715170242949,-116.56892874,0.00027397,2]
[326632877,1715170242963,-105.14107126,0.00027397,2]
[326632878,1715170242974,-507.75285791,0.00027397,2]
[326632879,1715170242986,-500.0,0.00027397,2]
[326632881,1715170242997,-506.4262134,0.00027397,2]
[326632883,1715170243008,-544.11378907,0.00027397,2]
[326632885,1715170243019,-500.0,0.00027397,2]
[326632887,1715170243031,-507.20703296,0.00027397,2]
[326632890,1715170243042,-507.5401635,0.00027397,2]
[326632892,1715170243053,-519.94,0.00027397,2]
[326632894,1715170243064,-500.0,0.00027397,2]
[326632896,1715170243076,-211.34,0.00027397,2]
[326632898,1715170243087,-248.70265644,0.00027397,2]
[326632901,1715170243099,-500.0,0.00027397,2]
[326632903,1715170243111,-506.32739277,0.00027397,2]
[326632905,1715170243123,-500.0,0.00027397,2]
[326632907,1715170243134,-500.0,0.00027397,2]
[326632910,1715170243145,-500.0,0.00027397,2]
[326632912,1715170243156,-505.25515549,0.00027397,2]
[326632914,1715170243167,-507.65600487,0.00027397,2]
[326632916,1715170243178,-500.0,0.00027397,2]
[326632918,1715170243189,-506.76544161,0.00027397,2]
[326632920,1715170243200,-504.71818729,0.00027397,2]
[326632923,1715170243211,-218.00588341,0.00027397,2]
[326632925,1715170243222,-500.0,0.00027397,2]
[326632927,1715170243233,-507.04770462,0.00027397,2]
[326632929,1715170243245,-534.01043604,0.00027397,2]
[326632932,1715170243257,-509.84044912,0.00027397,2]
[326632934,1715170243268,-509.63791469,0.00027397,2]
[326632936,1715170243279,-502.4635945,0.00027397,2]
[326632938,1715170243291,-500.0,0.00027397,2]
[326632940,1715170243302,-514.48050533,0.00027397,2]
[326632943,1715170243314,-632.42,0.00027397,2]
[326632945,1715170243325,-500.0,0.00027397,2]
[326632947,1715170243336,-500.0,0.00027397,2]
[326632949,1715170243347,-512.37895283,0.00027397,2]
[326632952,1715170243359,-269.74089797,0.00027397,2]
[326632954,1715170243371,-500.0,0.00027397,2]
[326632956,1715170243383,-513.69146135,0.00027397,2]
[326632958,1715170243395,-500.0,0.00027397,2]
[326632961,1715170243407,-508.04288772,0.00027397,2]
[326632963,1715170243417,-500.0,0.00027397,2]
[326632965,1715170243434,-500.0,0.00027397,2]